bitfinex-derivatives/quotes_BTCF0:USTF0_20240830
["timestamp","ask_amount","ask_price","bid_price","bid_amount"]
[1724984569422,0.18410637,59130.0,59129.0,1.552708]
[1724984569723,0.18410637,59130.0,59129.0,0.952708]
[1724984569926,0.18410637,59130.0,59129.0,0.956708]
[1724984570125,0.18410637,59130.0,59129.0,1.556708]
[1724984570429,0.18410637,59130.0,59129.0,0.957708]
[1724984570627,0.18410637,59130.0,59129.0,0.956708]
[1724984571338,0.18410637,59130.0,59129.0,0.449348]
[1724984572031,0.18410637,59130.0,59129.0,0.446348]
[1724984572225,0.18410637,59130.0,59129.0,0.447348]
[1724984572933,0.18510637,59130.0,59129.0,0.446348]
[1724984573123,0.18610637,59130.0,59129.0,0.445348]
[1724984573630,0.18410637,59130.0,59129.0,0.445348]
[1724984573828,0.19210637,59130.0,59129.0,0.445348]
[1724984577927,0.01563578,59130.0,59129.0,0.445348]
[1724984578930,0.01163578,59130.0,59129.0,0.445348]
[1724984579130,0.01463578,59130.0,59129.0,0.952708]
[1724984579328,0.01063578,59130.0,59129.0,1.58285966]
[1724984579641,0.01363578,59130.0,59129.0,1.58285966]
[1724984579822,0.01463578,59130.0,59129.0,1.58285966]
[1724984580022,0.01163578,59130.0,59129.0,1.58285966]
[1724984580234,0.01563578,59130.0,59129.0,1.58285966]
[1724984580431,0.004,59130.0,59129.0,1.58285966]
[1724984580636,0.0039,59140.0,59134.0,0.084541]
[1724984580824,0.0039,59145.0,59139.0,1.096133]
[1724984581030,0.084524,59146.0,59144.0,0.3608]
[1724984581534,0.26897561,59145.0,59144.0,0.3608]
[1724984581930,0.084525,59145.0,59144.0,0.3608]
[1724984582233,0.26897561,59145.0,59144.0,0.3618]
[1724984582531,0.18445061,59145.0,59144.0,0.446326]
[1724984582925,0.013,59145.0,59144.0,0.447326]
[1724984583130,0.20641894,59145.0,59144.0,0.447326]
[1724984585432,0.20641894,59145.0,59144.0,0.737326]
[1724984587538,0.20641894,59145.0,59144.0,0.3628]
[1724984591332,0.29094394,59145.0,59144.0,0.3628]
[1724984592137,0.12906547,59145.0,59144.0,0.3628]
[1724984595335,0.15912882,59145.0,59144.0,0.3628]
[1724984597043,0.04454047,59145.0,59144.0,0.447326]
[1724984602543,0.04954047,59145.0,59144.0,0.447326]
[1724984602743,0.04954047,59145.0,59144.0,0.953566]
[1724984602946,0.05354047,59145.0,59144.0,0.954566]
[1724984603344,0.05354047,59145.0,59144.0,1.554566]
[1724984603850,0.05354047,59145.0,59144.0,5.339092]
[1724984604347,0.00025367,59151.0,59150.0,0.084518]
[1724984604543,0.00025367,59151.0,59150.0,0.735318]
[1724984604745,0.0039,59161.0,59151.0,0.084516]
[1724984604950,0.075,59172.0,59151.0,0.084516]
[1724984604951,0.0039,59166.0,59160.0,1.0116]
[1724984605251,0.1949185,59167.0,59166.0,0.374495]
[1724984605756,0.00025367,59172.0,59166.0,0.3603]
[1724984605952,0.00025367,59172.0,59171.0,0.735288]
[1724984606344,0.1903192,59172.0,59171.0,0.3608]
[1724984606553,0.6973192,59172.0,59171.0,0.3608]
[1724984606744,0.084488,59171.0,59165.0,0.3608]
[1724984607054,0.084488,59171.0,59166.0,0.001]
[1724984607055,0.18354405,59170.0,59166.0,0.001]
[1724984607954,0.18354405,59170.0,59167.0,0.29]
[1724984608257,0.18354405,59170.0,59169.0,0.084491]
[1724984609756,0.18354405,59170.0,59169.0,0.085491]
[1724984610262,0.18354405,59170.0,59169.0,0.086491]
[1724984610442,0.18354405,59170.0,59169.0,0.447291]
[1724984610848,0.19268254,59171.0,59170.0,0.084489]
[1724984611148,0.00025367,59172.0,59170.0,0.084489]
[1724984611353,0.19268254,59171.0,59170.0,0.084489]
[1724984612059,0.19268254,59171.0,59170.0,0.085489]
[1724984612462,0.19268254,59171.0,59170.0,0.086489]
[1724984613264,0.19268254,59171.0,59170.0,0.447289]
[1724984615062,0.19268254,59171.0,59170.0,0.446289]
[1724984615765,0.19268254,59171.0,59170.0,0.445289]
[1724984616466,0.19268254,59171.0,59170.0,0.446289]
[1724984618061,0.19268254,59171.0,59170.0,0.445289]
[1724984619060,0.19268254,59171.0,59170.0,0.446289]
[1724984621966,0.19268254,59171.0,59170.0,0.3618]
[1724984622962,0.19268254,59171.0,59170.0,0.3608]
[1724984623374,0.19268254,59171.0,59170.0,0.3618]
[1724984623375,0.26218254,59171.0,59170.0,0.3618]
[1724984623563,0.93815854,59171.0,59170.0,0.3618]
[1724984623765,0.084495,59166.0,59165.0,0.3608]
[1724984623973,0.082495,59166.0,59165.0,0.3608]
[1724984624171,1.37232085,59166.0,59165.0,0.3608]
[1724984624377,1.44482085,59166.0,59165.0,0.3608]
[1724984624880,0.84482085,59166.0,59165.0,0.3608]
[1724984625369,0.84582085,59166.0,59165.0,0.3618]
[1724984625570,0.33878085,59166.0,59165.0,0.3618]
[1724984625771,0.34078085,59166.0,59165.0,0.3628]
[1724984626168,0.18578585,59166.0,59165.0,0.447296]
[1724984626384,0.18278585,59166.0,59165.0,0.445296]
[1724984626683,0.003,59166.0,59165.0,0.447296]
[1724984627072,0.18550343,59166.0,59165.0,0.446296]
[1724984627276,0.18850343,59166.0,59165.0,0.447296]
[1724984628375,0.18750343,59166.0,59165.0,0.447296]
[1724984628687,0.18850343,59166.0,59165.0,0.447296]
[1724984629287,0.18850343,59166.0,59165.0,0.446296]
[1724984629680,0.18750343,59166.0,59165.0,0.446296]
[1724984630279,0.18550343,59166.0,59165.0,0.445296]
[1724984630477,0.18450244,59166.0,59165.0,0.445296]
[1724984632589,0.18550244,59166.0,59165.0,0.952336]
[1724984633184,0.18450244,59166.0,59165.0,0.445296]
[1724984634491,0.18450244,59166.0,59165.0,1.552336]
[1724984635389,0.00025367,59172.0,59171.0,0.084488]
[1724984635588,0.00025367,59172.0,59171.0,0.735288]
[1724984635785,0.17868964,59172.0,59171.0,0.735288]
[1724984636586,0.17968964,59172.0,59171.0,0.736288]
[1724984636779,0.18168964,59172.0,59171.0,0.737288]
[1724984639998,0.18168964,59172.0,59171.0,0.76728058]
[1724984640893,0.18168964,59172.0,59171.0,1.87428058]
[1724984641402,0.18168964,59172.0,59171.0,1.95876858]
[1724984642401,0.18168964,59172.0,59171.0,5.65876858]
[1724984643092,0.18168964,59172.0,59171.0,4.46728058]
[1724984644000,0.18168964,59172.0,59171.0,5.57428058]
[1724984644202,0.18168964,59172.0,59171.0,5.65876858]
[1724984644800,0.18168964,59172.0,59171.0,4.55176858]
[1724984648399,0.003,59172.0,59171.0,5.65876858]
[1724984648591,0.0039,59182.0,59171.0,5.65876858]
[1724984648804,0.0039,59189.0,59181.0,1.0116]
[1724984649100,0.19243061,59189.0,59188.0,0.445263]
[1724984649991,0.19443061,59189.0,59188.0,0.445263]
[1724984650494,0.18719049,59193.0,59192.0,0.084458]
[1724984650815,0.00025344,59194.0,59193.0,0.084456]
[1724984651094,0.19219801,59194.0,59193.0,0.084456]
[1724984652301,0.19219801,59194.0,59193.0,0.085456]
[1724984653098,0.19219801,59194.0,59193.0,0.086456]
[1724984653399,0.19219801,59194.0,59193.0,1.266456]
[1724984653701,0.19219801,59194.0,59193.0,0.666456]
[1724984653894,0.19219801,59194.0,59193.0,1.265456]
[1724984655103,0.19219801,59194.0,59193.0,0.665456]
[1724984656898,0.19219801,59194.0,59193.0,0.592256]
[1724984657208,0.19219801,59194.0,59193.0,0.085456]
[1724984657506,0.19219801,59194.0,59193.0,3.785456]
[1724984657904,0.19219801,59194.0,59193.0,4.292256]
[1724984660106,0.19219801,59194.0,59193.0,5.013856]
[1724984660303,0.19219801,59194.0,59193.0,4.507056]
[1724984661197,0.19219801,59194.0,59193.0,4.516056]
[1724984662212,0.19219801,59194.0,59193.0,4.515056]
[1724984662513,0.19219801,59194.0,59193.0,4.525056]
[1724984663011,0.19219801,59194.0,59193.0,4.511056]
[1724984663207,0.19219801,59194.0,59193.0,4.516056]
[1724984663406,0.19219801,59194.0,59193.0,4.511056]
[1724984663606,0.19219801,59194.0,59193.0,4.518056]
[1724984663813,0.19219801,59194.0,59193.0,4.521056]
[1724984664407,0.0039,59205.0,59193.0,4.521056]
[1724984664408,0.0039,59205.0,59204.0,0.084441]
[1724984664724,0.1356,59206.0,59205.0,0.084439]
[1724984665207,0.31234372,59206.0,59205.0,0.084439]
[1724984667214,0.31234372,59206.0,59205.0,0.11534804]
[1724984668214,0.31234372,59206.0,59205.0,0.03090904]
[1724984668421,0.084439,59205.0,59204.0,0.72248]
[1724984668607,0.084439,59205.0,59204.0,0.7216]
[1724984668803,0.26647008,59205.0,59204.0,0.7216]
[1724984669416,0.18203108,59205.0,59204.0,0.7216]
[1724984671418,0.26647008,59205.0,59204.0,0.7216]
[1724984671813,0.18203108,59205.0,59204.0,0.7216]
[1724984673710,0.18203108,59205.0,59204.0,0.3608]
[1724984675417,0.26647008,59205.0,59204.0,0.3608]
[1724984677713,0.16889,59201.0,59200.0,0.00025344]
[1724984678014,0.55228118,59201.0,59200.0,0.00025344]
[1724984678210,1.05904118,59201.0,59200.0,0.00025344]
[1724984678808,1.65904118,59201.0,59200.0,0.00025344]
[1724984679215,1.05904118,59201.0,59200.0,0.00025344]
[1724984679820,0.17783618,59201.0,59200.0,0.44549944]
[1724984680218,0.03106511,59202.0,59200.0,0.44549944]
[1724984680416,0.19365468,59201.0,59200.0,0.44549944]
[1724984680823,0.17946036,59204.0,59200.0,0.44549944]
[1724984681019,0.16634862,59206.0,59200.0,0.44549944]
[1724984681419,0.17946036,59203.0,59200.0,0.44549944]
[1724984681618,0.19214051,59205.0,59200.0,0.44549944]
[1724984681925,0.1782137,59202.0,59200.0,0.44549944]
[1724984682121,0.067,59201.0,59200.0,0.44549944]
[1724984682526,0.2452137,59201.0,59200.0,0.44549944]
[1724984683011,0.1782137,59201.0,59200.0,0.44549944]
[1724984683523,0.19060423,59202.0,59201.0,0.084445]
[1724984683826,0.084443,59203.0,59201.0,0.084445]
[1724984684023,0.19161274,59202.0,59201.0,0.084445]
[1724984685526,0.18822525,59205.0,59201.0,0.084445]
[1724984685831,0.18822525,59205.0,59200.0,0.36105344]
[1724984685832,0.1356,59206.0,59204.0,0.3608]
[1724984686125,0.00016633,59211.0,59205.0,0.084439]
[1724984686320,0.00016633,59211.0,59210.0,0.3608]
[1724984686818,0.19344837,59211.0,59210.0,0.3608]
[1724984688131,0.19344837,59211.0,59210.0,0.3618]
[1724984688821,0.19344837,59211.0,59210.0,0.3628]
[1724984690122,0.19344837,59211.0,59210.0,0.3618]
[1724984690326,0.19344837,59211.0,59210.0,0.3628]
[1724984692824,0.27787937,59211.0,59210.0,0.3618]
[1724984693324,0.27787937,59211.0,59210.0,0.3628]
[1724984696018,1.38455937,59211.0,59210.0,0.3628]
[1724984696218,1.3972397,59211.0,59210.0,0.3628]
[1724984698635,0.7972397,59211.0,59210.0,0.3628]
[1724984698819,1.3972397,59211.0,59210.0,0.3628]
[1724984701235,1.15667387,59211.0,59210.0,0.3628]
[1724984701531,1.34283555,59211.0,59210.0,0.3628]
[1724984701935,1.51899985,59211.0,59210.0,0.3628]
[1724984702324,0.91899985,59211.0,59210.0,0.3628]
[1724984702935,1.60343085,59211.0,59210.0,0.002]
[1724984703438,1.89343085,59211.0,59210.0,0.002]
[1724984707231,0.39963952,59211.0,59210.0,0.3628]
[1724984707438,0.36232598,59211.0,59210.0,0.447232]
[1724984708526,0.36232598,59211.0,59210.0,0.446232]
[1724984709336,0.36232598,59211.0,59210.0,0.445232]
[1724984709537,0.36232598,59211.0,59210.0,0.735232]
[1724984709937,0.36232598,59211.0,59210.0,0.445232]
[1724984711867,0.36232598,59211.0,59210.0,0.735232]
[1724984712163,0.36232598,59211.0,59210.0,0.76501626]
[1724984713469,0.36232598,59211.0,59210.0,1.87169626]
[1724984713666,0.0039,59221.0,59220.0,0.084418]
[1724984713961,0.0039,59231.0,59226.0,0.084409]
[1724984714165,0.084401,59232.0,59229.0,0.3608]
[1724984714372,0.19047051,59230.0,59229.0,0.3608]
[1724984714869,0.18408436,59231.0,59229.0,0.3608]
[1724984715068,0.18408436,59232.0,59229.0,0.3608]
[1724984715258,0.18110944,59233.0,59229.0,0.3608]
[1724984715561,0.18408436,59232.0,59229.0,0.3608]
[1724984715764,0.374404,59230.0,59229.0,0.3608]
[1724984715966,0.374404,59230.0,59229.0,0.3618]
[1724984716158,0.26135133,59230.0,59229.0,0.3618]
[1724984716356,0.26135133,59230.0,59229.0,0.3628]
[1724984716856,0.26135133,59230.0,59229.0,0.3618]
[1724984717060,0.26135133,59230.0,59229.0,0.3628]
[1724984717366,0.26135133,59230.0,59229.0,0.3618]
[1724984717574,0.26135133,59230.0,59229.0,0.3628]
[1724984718171,0.26135133,59230.0,59229.0,0.3618]
[1724984718360,0.26135133,59230.0,59229.0,0.3628]
[1724984722773,0.55135133,59230.0,59229.0,0.3628]
[1724984724774,0.26135133,59230.0,59229.0,0.3628]
[1724984725967,0.26135133,59230.0,59229.0,0.447205]
[1724984726169,0.17694733,59230.0,59229.0,0.447205]
[1724984726676,0.17603939,59231.0,59229.0,0.447205]
[1724984726865,0.03070944,59233.0,59230.0,0.084404]
[1724984727063,0.18780521,59231.0,59230.0,0.084404]
[1724984727469,0.18780521,59233.0,59230.0,0.084404]
[1724984727976,0.18780521,59233.0,59229.0,0.002]
[1724984727977,0.29,59232.0,59229.0,0.002]
[1724984728278,0.084404,59230.0,59229.0,0.002]
[1724984728786,1.45796065,59230.0,59229.0,0.001]
[1724984729169,0.084414,59223.0,59221.0,0.0039]
[1724984729481,0.18246148,59222.0,59220.0,0.3608]
[1724984729674,0.18246148,59222.0,59215.0,0.36105344]
[1724984729983,0.084423,59216.0,59215.0,0.00025344]
[1724984730379,0.33804388,59216.0,59215.0,0.00025344]
[1724984730578,0.41514388,59216.0,59215.0,0.00025344]
[1724984731078,0.41514388,59216.0,59215.0,0.00125344]
[1724984731079,0.42782325,59216.0,59215.0,0.00125344]
[1724984731284,0.45824996,59216.0,59215.0,0.00125344]
[1724984732088,1.56488996,59216.0,59215.0,0.00125344]
[1724984732880,1.56488996,59216.0,59215.0,0.00225344]
[1724984733586,0.084436,59207.0,59206.0,0.0039]
[1724984733789,0.084436,59207.0,59205.0,0.3608]
[1724984733981,0.26502002,59207.0,59205.0,0.3608]
[1724984735894,0.084438,59206.0,59205.0,0.3608]
[1724984736278,0.26539506,59206.0,59205.0,0.3608]
[1724984737093,0.26539506,59206.0,59200.0,0.36105344]
[1724984737094,0.084442,59203.0,59200.0,0.36105344]
[1724984737590,0.084445,59201.0,59200.0,0.00025344]
[1724984738088,0.19118413,59201.0,59200.0,0.00025344]
[1724984738689,0.27562913,59201.0,59200.0,0.00025344]
[1724984739186,0.30559548,59201.0,59200.0,0.00025344]
[1724984739386,0.27562913,59201.0,59200.0,0.00025344]
[1724984739693,0.27562913,59201.0,59200.0,0.00125344]
[1724984739694,1.46683413,59201.0,59200.0,0.00125344]
[1724984739881,0.8795135,59201.0,59200.0,0.00125344]
[1724984740087,1.4795135,59201.0,59200.0,0.00125344]
[1724984741091,0.8795135,59201.0,59200.0,0.00125344]
[1724984743897,0.3727535,59201.0,59200.0,0.00125344]
[1724984744096,1.4795135,59201.0,59200.0,0.00125344]
[1724984745090,0.8795135,59201.0,59200.0,0.00125344]
[1724984745285,0.168916,59192.0,59191.0,0.0039]
[1724984745495,0.6508,59192.0,59182.0,0.0039]
[1724984745685,0.6508,59192.0,59178.0,0.1299]
[1724984745686,0.3608,59184.0,59178.0,0.1299]
[1724984746090,0.084473,59181.0,59178.0,0.1299]
[1724984746588,0.19074369,59180.0,59178.0,0.1299]
[1724984746793,0.19074369,59180.0,59179.0,0.3608]
[1724984746985,0.18074369,59180.0,59179.0,0.3608]
[1724984747785,0.18074369,59180.0,59179.0,0.445276]
[1724984748390,0.18074369,59180.0,59179.0,0.3608]
[1724984748695,0.18074369,59180.0,59179.0,0.3748]
[1724984748892,0.26521869,59180.0,59179.0,0.3748]
[1724984749192,0.26521869,59180.0,59179.0,0.3888]
[1724984750990,0.18074369,59180.0,59179.0,0.3888]
[1724984751192,0.18074369,59180.0,59179.0,0.473276]
[1724984760203,0.18074369,59180.0,59179.0,0.3888]
[1724984761003,0.18074369,59180.0,59179.0,0.473276]
[1724984764794,0.18074369,59180.0,59179.0,1.580196]
[1724984764996,0.18074369,59180.0,59179.0,0.980196]
[1724984765201,0.18074369,59180.0,59179.0,1.038896]
[1724984766498,0.18074369,59180.0,59179.0,1.638896]
[1724984766700,0.18074369,59180.0,59179.0,1.716396]
[1724984770605,0.00025344,59185.0,59184.0,0.084469]
[1724984770805,0.00025344,59185.0,59184.0,1.326618]
[1724984771002,0.18818421,59185.0,59184.0,1.926618]
[1724984772296,0.18818421,59185.0,59184.0,1.940618]
[1724984772703,0.18818421,59185.0,59184.0,1.856149]
[1724984773103,0.18918421,59185.0,59184.0,1.870149]
[1724984774600,0.18918421,59185.0,59184.0,1.90098153]
[1724984780311,0.18918421,59185.0,59184.0,1.30098153]
[1724984781222,0.18918421,59185.0,59184.0,0.94018153]
[1724984781420,0.18918421,59185.0,59184.0,1.66178153]
[1724984782824,0.18918421,59185.0,59184.0,1.15490153]
[1724984783520,0.18918421,59185.0,59184.0,0.86490153]
[1724984786114,0.18918421,59185.0,59184.0,1.15490153]
[1724984786518,0.00527057,59185.0,59184.0,1.15490153]
[1724984791032,0.00527057,59185.0,59184.0,0.78043253]
[1724984791531,0.084475,59180.0,59176.0,0.0039]
[1724984791735,0.084475,59180.0,59175.0,0.3608]
[1724984791736,0.1558,59179.0,59175.0,0.3608]
[1724984791929,0.3494801,59179.0,59175.0,0.3608]
[1724984792838,0.3494801,59179.0,59176.0,0.028]
[1724984793533,0.3494801,59179.0,59175.0,0.40583581]
[1724984793726,0.3504801,59179.0,59175.0,0.41983581]
[1724984795932,0.3514801,59179.0,59175.0,0.39183581]
[1724984797739,0.3514801,59179.0,59175.0,0.03103581]
[1724984797933,0.3514801,59179.0,59177.0,0.3608]
[1724984798132,0.38240798,59179.0,59177.0,0.3608]
[1724984798436,0.0756,59178.0,59177.0,0.3608]
[1724984798740,0.27076969,59178.0,59177.0,0.3608]
[1724984799242,0.27076969,59178.0,59177.0,0.3788]
[1724984799641,0.27076969,59178.0,59177.0,0.3658]
[1724984799833,0.27176969,59178.0,59177.0,0.018]
[1724984800035,0.27276969,59178.0,59177.0,0.3788]
[1724984801834,0.27276969,59178.0,59177.0,0.463279]
[1724984802051,0.19716969,59178.0,59177.0,0.463279]
[1724984802843,0.19716969,59178.0,59177.0,4.163279]
[1724984803233,0.19716969,59178.0,59177.0,5.270239]
[1724984805943,0.19716969,59178.0,59177.0,4.670239]
[1724984806247,0.19716969,59178.0,59177.0,5.270239]
[1724984807342,0.19716969,59178.0,59177.0,4.670239]
[1724984807539,0.19716969,59178.0,59177.0,4.163279]
[1724984808140,0.19716969,59178.0,59177.0,0.463279]
[1724984813049,0.19716969,59178.0,59177.0,0.824079]
[1724984813446,0.19716969,59178.0,59177.0,1.331039]
[1724984814747,0.19716969,59178.0,59177.0,2.015518]
[1724984814947,0.0039,59188.0,59187.0,0.084465]
[1724984815240,0.00025344,59190.0,59189.0,0.084462]
[1724984815644,0.17730136,59190.0,59189.0,0.084462]
[1724984815851,0.17730136,59190.0,59189.0,0.591302]
[1724984816349,0.17730136,59190.0,59189.0,0.084462]
[1724984816853,0.17830136,59190.0,59189.0,0.089462]
[1724984817044,0.17930136,59190.0,59189.0,0.101462]
[1724984818351,0.00225344,59190.0,59189.0,1.208302]
[1724984818550,0.00225344,59190.0,59189.0,1.292764]
[1724984818854,0.0719,59209.0,59195.0,0.084453]
[1724984819044,0.0719,59209.0,59208.0,0.6508]
[1724984819245,0.0719,59209.0,59208.0,0.3608]
[1724984819553,0.25927231,59209.0,59208.0,0.3608]
[1724984820356,0.26027231,59209.0,59208.0,0.3608]
[1724984821662,0.26027231,59209.0,59208.0,0.38930457]
[1724984821956,0.27827231,59209.0,59208.0,0.39130457]
[1724984822455,0.27827231,59209.0,59208.0,0.3628]
[1724984822650,0.78495231,59209.0,59208.0,0.3628]
[1724984823151,1.46938531,59209.0,59208.0,0.3628]
[1724984824152,1.46938531,59209.0,59208.0,0.002]
[1724984824859,1.49810457,59209.0,59208.0,0.002]
[1724984826653,0.71840018,59209.0,59208.0,0.002]
[1724984826851,0.21172018,59209.0,59208.0,0.3628]
[1724984827159,0.09856792,59209.0,59208.0,0.3628]
[1724984833548,0.09856792,59209.0,59208.0,0.39125191]
[1724984835361,0.38856792,59209.0,59208.0,0.002]
[1724984835562,0.47300092,59209.0,59208.0,0.002]
[1724984839963,0.18300092,59209.0,59208.0,0.002]
[1724984840766,0.09856792,59209.0,59208.0,0.086435]
[1724984843564,0.09856792,59209.0,59208.0,0.002]
[1724984847663,0.18300992,59209.0,59208.0,0.002]
[1724984850264,1.69348591,59209.0,59208.0,0.002]
[1724984850678,0.084449,59204.0,59203.0,0.00025344]
[1724984850970,1.42124652,59204.0,59203.0,0.00025344]
[1724984851270,2.03392628,59204.0,59203.0,0.00025344]
[1724984851871,2.03892628,59204.0,59203.0,0.00025344]
[1724984852071,2.04192628,59204.0,59203.0,0.00025344]
[1724984854970,2.12637528,59204.0,59203.0,0.00025344]
[1724984855182,0.08446,59196.0,59195.0,0.0039]
[1724984855466,0.84573541,59196.0,59190.0,0.084469]
[1724984855672,0.24237976,59195.0,59190.0,0.084469]
[1724984856068,0.19493541,59194.0,59190.0,0.084469]
[1724984856774,0.084466,59192.0,59190.0,0.084469]
[1724984857174,0.17884769,59191.0,59190.0,0.084469]
[1724984857767,0.084472,59188.0,59187.0,0.00025344]
[1724984857975,1.619624,59188.0,59187.0,0.00025344]
[1724984858173,1.81115597,59188.0,59187.0,0.00025344]
[1724984859074,0.36348,59182.0,59181.0,0.0039]
[1724984859270,0.6508,59182.0,59173.0,0.0839]
[1724984859470,0.3608,59176.0,59173.0,0.08]
[1724984859671,0.3598,59176.0,59173.0,0.08]
[1724984859867,0.19258988,59175.0,59173.0,0.08]
[1724984862184,0.55338988,59175.0,59174.0,0.084492]
[1724984862484,0.55338988,59175.0,59173.0,0.08]
[1724984862877,0.084499,59169.0,59168.0,0.00025344]
[1724984863174,0.445299,59169.0,59168.0,0.00025344]
[1724984863364,1.1359996,59169.0,59168.0,0.00025344]
[1724984863568,0.6289596,59169.0,59168.0,0.00025344]
[1724984863985,1.14868862,59169.0,59168.0,0.00025344]
[1724984864184,1.17804271,59169.0,59168.0,0.00025344]
[1724984864381,1.16535369,59169.0,59168.0,0.00025344]
[1724984865167,1.16635369,59169.0,59168.0,0.00025344]
[1724984865367,1.76635369,59169.0,59168.0,0.00025344]
[1724984865579,1.68185469,59169.0,59160.0,0.0039]
[1724984865779,0.6508,59161.0,59156.0,0.0039]
[1724984866082,0.29,59157.0,59150.0,0.088425]
[1724984866379,0.1769308,59156.0,59150.0,0.084525]
[1724984866680,0.1769308,59156.0,59152.0,0.084523]
[1724984867472,0.1769308,59156.0,59148.0,0.3608]
[1724984867681,0.1769308,59156.0,59155.0,0.445319]
[1724984867874,0.00025344,59159.0,59158.0,0.084515]
[1724984868182,0.18229537,59159.0,59158.0,0.084515]
[1724984868477,0.18229537,59159.0,59158.0,0.591635]
[1724984868681,0.05603504,59159.0,59158.0,1.191635]
[1724984868975,0.05603504,59159.0,59158.0,0.084515]
[1724984869382,0.05703504,59159.0,59158.0,0.084515]
[1724984869874,0.05803504,59159.0,59158.0,0.084515]
[1724984870270,0.05803504,59159.0,59158.0,0.11282063]
[1724984870781,1.45027937,59150.0,59147.0,0.50373344]
[1724984870969,1.32677937,59150.0,59149.0,1.476]
[1724984871278,1.51627216,59150.0,59149.0,1.50503802]
[1724984871785,1.51627216,59150.0,59149.0,1.58956602]
[1724984872084,1.51727216,59150.0,59149.0,1.58956602]
[1724984873472,1.87907216,59150.0,59149.0,1.58956602]
[1724984874486,1.87907216,59150.0,59149.0,1.60326602]
[1724984875480,1.51827216,59150.0,59149.0,1.60326602]
[1724984876585,1.23774237,59150.0,59149.0,1.68779402]
[1724984876794,1.03087937,59150.0,59149.0,1.68779402]
[1724984876982,0.3608,59160.0,59159.0,0.084513]
[1724984877377,0.5391717,59160.0,59159.0,0.084513]
[1724984877589,0.5391717,59160.0,59159.0,2.894513]
[1724984878581,0.5401717,59160.0,59159.0,2.894513]
[1724984880082,0.5401717,59160.0,59159.0,2.92398525]
[1724984881689,0.5401717,59160.0,59159.0,0.11398525]
[1724984883291,0.5401717,59160.0,59159.0,0.40398525]
[1724984883481,0.001,59160.0,59159.0,1.59561825]
[1724984884183,0.001,59160.0,59159.0,4.40561825]
[1724984885079,0.001,59160.0,59159.0,4.48581825]
[1724984885279,0.001,59160.0,59159.0,4.53603984]
[1724984885485,0.001,59160.0,59159.0,4.48581825]
[1724984887283,0.18736474,59160.0,59159.0,4.40130525]
[1724984888193,0.18836474,59160.0,59159.0,4.40130525]
[1724984889190,0.18736474,59160.0,59159.0,4.40130525]
[1724984890285,0.18636474,59160.0,59159.0,4.40230525]
[1724984890699,0.00025344,59164.0,59163.0,0.084508]
[1724984890887,0.00025344,59164.0,59163.0,0.374508]
[1724984891087,0.17612126,59164.0,59163.0,0.881588]
[1724984891597,0.17612126,59164.0,59163.0,1.926896]
[1724984891797,0.17612126,59164.0,59163.0,1.93526775]
[1724984892597,0.17812126,59164.0,59163.0,1.93526775]
[1724984892786,0.17812126,59164.0,59163.0,1.926896]
[1724984893089,0.17912126,59164.0,59163.0,1.926896]
[1724984894179,0.00325344,59164.0,59163.0,1.926896]
[1724984894383,0.00225344,59164.0,59163.0,1.927896]
[1724984896397,4.4e-07,59164.0,59163.0,1.927896]
[1724984896598,0.0806,59173.0,59172.0,0.084495]
[1724984896790,0.0806,59173.0,59172.0,0.374495]
[1724984896991,0.26088587,59173.0,59172.0,0.374495]
[1724984899203,0.26088587,59173.0,59172.0,0.085495]
[1724984899392,0.26088587,59173.0,59172.0,0.086495]
[1724984900895,0.26088587,59173.0,59172.0,0.085495]
[1724984902103,0.26088587,59173.0,59172.0,0.11629825]
[1724984903096,0.26088587,59173.0,59172.0,0.11529825]
[1724984904094,0.26388587,59173.0,59172.0,0.11529825]
[1724984904500,0.26288587,59173.0,59172.0,0.11529825]
[1724984904697,0.26188587,59173.0,59172.0,0.11529825]
[1724984904903,0.26388587,59173.0,59172.0,0.11529825]
[1724984906806,0.26288587,59173.0,59172.0,0.11529825]
[1724984907693,0.26088587,59173.0,59172.0,0.11529825]
[1724984907902,0.26188587,59173.0,59172.0,0.48979325]
[1724984908207,0.00025344,59178.0,59177.0,0.168976]
[1724984908505,0.1932583,59178.0,59177.0,0.374488]
[1724984909606,0.1982583,59178.0,59177.0,0.085488]
[1724984910102,0.2042583,59178.0,59177.0,0.086488]
[1724984910706,0.2032583,59178.0,59177.0,0.086488]
[1724984913507,0.5640583,59178.0,59177.0,0.086488]
[1724984913904,0.2032583,59178.0,59177.0,0.086488]
[1724984918710,0.2032583,59178.0,59177.0,0.085488]
[1724984918711,0.1982583,59178.0,59177.0,0.085488]
[1724984918915,0.2012583,59178.0,59177.0,0.085488]
[1724984919709,0.13165235,59180.0,59179.0,0.084485]
[1724984920213,0.31124353,59180.0,59179.0,0.084485]
[1724984921217,0.31524353,59180.0,59179.0,0.084485]
[1724984922003,0.31924353,59180.0,59179.0,0.374485]
[1724984923306,0.31524353,59180.0,59179.0,0.374485]
[1724984923518,0.31824353,59180.0,59179.0,0.374485]
[1724984923917,0.31524353,59180.0,59179.0,0.374485]
[1724984924217,0.31524353,59180.0,59179.0,0.40868769]
[1724984924518,0.31524353,59180.0,59179.0,0.40468769]
[1724984924717,0.31524353,59180.0,59179.0,0.40768769]
[1724984925019,0.31124353,59180.0,59179.0,0.40968769]
[1724984925718,0.25639118,59180.0,59179.0,0.40968769]
[1724984928916,0.25639118,59180.0,59179.0,0.40868769]
[1724984929722,0.25639118,59180.0,59179.0,0.40568769]
[1724984929912,0.25639118,59180.0,59179.0,0.40768769]
[1724984932511,0.17959118,59180.0,59179.0,0.49217269]
[1724984932823,0.01268226,59187.0,59186.0,0.084475]
[1724984932824,0.075,59187.0,59186.0,0.084475]
[1724984933021,0.078,59192.0,59191.0,0.084468]
[1724984933322,0.078,59192.0,59191.0,0.374468]
[1724984933519,0.18984073,59192.0,59191.0,0.735268]
[1724984933915,0.16888123,59200.0,59199.0,0.084456]
[1724984934113,0.16888123,59200.0,59199.0,0.374456]
[1724984934114,0.1562,59200.0,59199.0,0.374456]
[1724984934314,0.01268123,59206.0,59199.0,1.481216]
[1724984934525,0.01268123,59206.0,59205.0,0.735248]
[1724984934713,0.1595,59213.0,59212.0,0.084438]
[1724984934913,0.1595,59213.0,59212.0,0.374438]
[1724984935112,0.35356749,59213.0,59212.0,0.374438]
[1724984935316,0.35356749,59213.0,59212.0,0.084438]